[Event "Late-Titled-Tuesday-Blitz-June-04-2024"]
[Site "Chess.com"]
[Date "2024.06.04"]
[Round "4"]
[White "Smoking_Crow"]
[Black "Der_Balak_3Halak"]
[Result "0-1"]
[WhiteElo "2536"]
[BlackElo "2389"]
[TimeControl "180+1"]
[EndTime "14:37:34 PDT"]
[Termination "Der_Balak_3Halak won by resignation"]

1. a3 {[%clk 0:03:00.9]} 1... a6 {[%clk 0:02:59.3]} 2. h3 {[%clk 0:02:59.9]}
2... h6 {[%clk 0:02:59.2]} 3. e3 {[%clk 0:02:59.6]} 3... e6 {[%clk 0:02:59.1]}
4. Ke2 {[%clk 0:02:59.5]} 4... d5 {[%clk 0:02:57.3]} 5. d4 {[%clk 0:02:59.3]}
5... c5 {[%clk 0:02:57.1]} 6. c3 {[%clk 0:02:59.3]} 6... Nc6 {[%clk 0:02:57.4]}
7. f4 {[%clk 0:02:59]} 7... Nf6 {[%clk 0:02:57.7]} 8. Nf3 {[%clk 0:02:56.8]}
8... Ne4 {[%clk 0:02:57.8]} 9. Ke1 {[%clk 0:02:53.4]} 9... Be7 {[%clk
0:02:56.8]} 10. h4 {[%clk 0:02:47.6]} 10... e5 {[%clk 0:02:41.8]} 11. dxe5
{[%clk 0:02:36.8]} 11... Bg4 {[%clk 0:02:40.4]} 12. Be2 {[%clk 0:02:26.6]} 12...
Bxf3 {[%clk 0:02:38.6]} 13. Bxf3 {[%clk 0:02:27.5]} 13... Bxh4+ {[%clk
0:02:38.9]} 14. Kf1 {[%clk 0:02:23.7]} 14... Nf2 {[%clk 0:02:36.3]} 15. Qxd5
{[%clk 0:02:17.7]} 15... Nxh1 {[%clk 0:02:31.2]} 16. Nd2 {[%clk 0:02:13]} 16...
Ng3+ {[%clk 0:02:28.7]} 17. Kg1 {[%clk 0:02:12.7]} 17... O-O {[%clk 0:02:23]}
18. c4 {[%clk 0:02:00]} 18... Nf5 {[%clk 0:02:16.2]} 19. Ne4 {[%clk 0:01:56.6]}
19... Nce7 {[%clk 0:02:07.4]} 20. Qxc5 {[%clk 0:01:50.1]} 20... Qd3 {[%clk
0:02:05.9]} 21. Bd2 {[%clk 0:01:41.4]} 21... Ng3 {[%clk 0:02:02]} 22. Nxg3
{[%clk 0:01:18.5]} 22... Bxg3 {[%clk 0:02:02.9]} 23. Bc3 {[%clk 0:01:14.3]}
23... Nf5 {[%clk 0:01:57.7]} 24. Bxb7 {[%clk 0:00:54.7]} 24... Rab8 {[%clk
0:01:44.1]} 25. Bf3 {[%clk 0:00:50.9]} 25... Nxe3 {[%clk 0:01:36.5]} 26. Qd6
{[%clk 0:00:41.2]} 26... Qxc4 {[%clk 0:01:22.7]} 27. Qd2 {[%clk 0:00:28.3]}
27... Bxf4 {[%clk 0:01:19.7]} 28. Qf2 {[%clk 0:00:27.7]} 28... Nf5 {[%clk
0:01:17.7]} 29. Re1 {[%clk 0:00:26.8]} 29... Bg3 {[%clk 0:01:17.1]} 30. Qe2
{[%clk 0:00:26]} 30... Qc5+ {[%clk 0:01:13.9]} 31. Kh1 {[%clk 0:00:22.7]} 31...
Bf4 {[%clk 0:01:08.6]} 32. Qc2 {[%clk 0:00:15.6]} 32... Ng3+ {[%clk 0:01:07.5]}
33. Kh2 {[%clk 0:00:15.7]} 33... Ne4+ {[%clk 0:01:02.3]} 34. Kh3 {[%clk
0:00:15.3]} 34... Nf2+ {[%clk 0:01:00.7]} 35. Kh4 {[%clk 0:00:12.6]} 35... Qe7+
{[%clk 0:01:00.7]} 0-1

[Event "Late-Titled-Tuesday-Blitz-June-04-2024"]
[Site "Chess.com"]
[Date "2024.06.04"]
[Round "4"]
[White "Bryanl106"]
[Black "Cambek64"]
[Result "1-0"]
[WhiteElo "2726"]
[BlackElo "2525"]
[TimeControl "180+1"]
[EndTime "14:37:37 PDT"]
[Termination "Bryanl106 won by resignation"]

1. e4 {[%clk 0:03:00]} 1... c6 {[%clk 0:02:58.2]} 2. Nf3 {[%clk 0:02:59.3]} 2...
d5 {[%clk 0:02:58.7]} 3. Nc3 {[%clk 0:02:59.6]} 3... Bg4 {[%clk 0:02:55.1]} 4.
h3 {[%clk 0:02:59.9]} 4... Bxf3 {[%clk 0:02:54.9]} 5. Qxf3 {[%clk 0:03:00.8]}
5... e6 {[%clk 0:02:55]} 6. g3 {[%clk 0:03:00]} 6... Nf6 {[%clk 0:02:55]} 7. Bg2
{[%clk 0:03:00.4]} 7... Be7 {[%clk 0:02:55.6]} 8. O-O {[%clk 0:02:59.5]} 8...
O-O {[%clk 0:02:56.1]} 9. d3 {[%clk 0:02:53.4]} 9... Nbd7 {[%clk 0:02:55.1]} 10.
g4 {[%clk 0:02:49.6]} 10... b5 {[%clk 0:02:50.1]} 11. g5 {[%clk 0:02:27.5]}
11... Ne8 {[%clk 0:02:47.7]} 12. Qg3 {[%clk 0:02:26.4]} 12... b4 {[%clk
0:02:46.9]} 13. Ne2 {[%clk 0:02:26.1]} 13... Qc7 {[%clk 0:02:35]} 14. Bf4 {[%clk
0:02:21]} 14... Bd6 {[%clk 0:02:35.3]} 15. d4 {[%clk 0:02:15.1]} 15... a5 {[%clk
0:02:29.6]} 16. c3 {[%clk 0:02:10.5]} 16... Bxf4 {[%clk 0:02:22.1]} 17. Nxf4
{[%clk 0:02:09.2]} 17... bxc3 {[%clk 0:02:11.2]} 18. bxc3 {[%clk 0:02:08.6]}
18... Nd6 {[%clk 0:02:00.3]} 19. Nh5 {[%clk 0:01:45.9]} 19... Nb5 {[%clk
0:01:52.6]} 20. e5 {[%clk 0:01:44.3]} 20... Kh8 {[%clk 0:01:48.5]} 21. f4 {[%clk
0:01:41.7]} 21... g6 {[%clk 0:01:43.7]} 22. Nf6 {[%clk 0:01:41.4]} 22... Nxf6
{[%clk 0:01:38.8]} 23. exf6 {[%clk 0:01:42.3]} 23... Nd6 {[%clk 0:01:29.7]} 24.
h4 {[%clk 0:01:25.6]} 24... Nf5 {[%clk 0:01:28]} 25. Qh3 {[%clk 0:01:24.8]}
25... c5 {[%clk 0:01:25.5]} 26. Rad1 {[%clk 0:01:19.7]} 26... cxd4 {[%clk
0:01:25.1]} 27. cxd4 {[%clk 0:01:20.6]} 27... Rfc8 {[%clk 0:01:23.2]} 28. h5
{[%clk 0:01:14.4]} 28... Kg8 {[%clk 0:01:15.6]} 29. hxg6 {[%clk 0:01:07.1]}
29... hxg6 {[%clk 0:00:51.9]} 30. Rd3 {[%clk 0:01:05.2]} 30... Qa7 {[%clk
0:00:48]} 31. Kh1 {[%clk 0:00:45.3]} 31... Ng7 {[%clk 0:00:24]} 32. fxg7 {[%clk
0:00:39.2]} 32... Kxg7 {[%clk 0:00:24.2]} 33. Qh6+ {[%clk 0:00:39.1]} 33... Kg8
{[%clk 0:00:24.8]} 34. Rh3 {[%clk 0:00:39.4]} 1-0

[Event "Late-Titled-Tuesday-Blitz-June-04-2024"]
[Site "Chess.com"]
[Date "2024.06.04"]
[Round "4"]
[White "Sanyura"]
[Black "laskakid"]
[Result "0-1"]
[WhiteElo "2536"]
[BlackElo "2391"]
[TimeControl "180+1"]
[EndTime "14:37:38 PDT"]
[Termination "laskakid won by resignation"]

1. Nf3 {[%clk 0:02:09.9]} 1... f5 {[%clk 0:02:59.3]} 2. g3 {[%clk 0:02:07.7]}
2... Nf6 {[%clk 0:02:59.2]} 3. Bg2 {[%clk 0:02:08.6]} 3... g6 {[%clk 0:02:58.6]}
4. O-O {[%clk 0:02:09.5]} 4... Bg7 {[%clk 0:02:58.6]} 5. d3 {[%clk 0:02:09]}
5... d6 {[%clk 0:02:57]} 6. Nbd2 {[%clk 0:02:09.9]} 6... O-O {[%clk 0:02:55]} 7.
e4 {[%clk 0:02:09.8]} 7... fxe4 {[%clk 0:02:49.2]} 8. dxe4 {[%clk 0:02:10.7]}
8... e5 {[%clk 0:02:36.1]} 9. h3 {[%clk 0:02:09.7]} 9... Be6 {[%clk 0:02:31.4]}
10. c3 {[%clk 0:02:09.5]} 10... Kh8 {[%clk 0:02:19.4]} 11. Ng5 {[%clk
0:01:58.7]} 11... Bg8 {[%clk 0:02:18.9]} 12. f4 {[%clk 0:01:59.3]} 12... h6
{[%clk 0:02:14.4]} 13. Ngf3 {[%clk 0:01:58.4]} 13... exf4 {[%clk 0:02:14.8]} 14.
gxf4 {[%clk 0:01:59.3]} 14... Nh5 {[%clk 0:02:08.3]} 15. f5 {[%clk 0:01:58.8]}
15... gxf5 {[%clk 0:02:02.8]} 16. exf5 {[%clk 0:01:56.6]} 16... Ng3 {[%clk
0:02:00.6]} 17. Re1 {[%clk 0:01:56]} 17... Nxf5 {[%clk 0:02:00.4]} 18. Ne4
{[%clk 0:01:56.2]} 18... d5 {[%clk 0:01:55.5]} 19. Nf2 {[%clk 0:01:56]} 19...
Nc6 {[%clk 0:01:52.9]} 20. Bf4 {[%clk 0:01:53]} 20... Qd7 {[%clk 0:01:50.3]} 21.
Qd2 {[%clk 0:01:51.2]} 21... Rae8 {[%clk 0:01:47.9]} 22. Ng4 {[%clk 0:01:51.2]}
22... d4 {[%clk 0:01:25.7]} 23. Nxh6 {[%clk 0:01:38.2]} 23... Ne3 {[%clk
0:01:09.7]} 24. Nxg8 {[%clk 0:01:33.5]} 24... Rxf4 {[%clk 0:01:04.5]} 25. cxd4
{[%clk 0:01:29.7]} 25... Nxg2 {[%clk 0:00:55.9]} 26. Kxg2 {[%clk 0:01:29.4]}
26... Rxe1 {[%clk 0:00:48.5]} 27. Rxe1 {[%clk 0:01:28.6]} 27... Qf7 {[%clk
0:00:25.3]} 28. Ne7 {[%clk 0:01:11.1]} 28... Rxf3 {[%clk 0:00:22]} 29. Nxc6
{[%clk 0:01:04.8]} 29... bxc6 {[%clk 0:00:21.5]} 30. Re7 {[%clk 0:00:54.6]}
30... Qd5 {[%clk 0:00:17.5]} 31. Kh2 {[%clk 0:00:51]} 31... Qd6+ {[%clk
0:00:13.8]} 32. Kg2 {[%clk 0:00:49]} 32... Rg3+ {[%clk 0:00:12.7]} 33. Kf2
{[%clk 0:00:49.3]} 33... Bxd4+ {[%clk 0:00:11.9]} 0-1

[Event "Late-Titled-Tuesday-Blitz-June-04-2024"]
[Site "Chess.com"]
[Date "2024.06.04"]
[Round "4"]
[White "nitpicker"]
[Black "vladoboch"]
[Result "0-1"]
[WhiteElo "2318"]
[BlackElo "2480"]
[TimeControl "180+1"]
[EndTime "14:37:38 PDT"]
[Termination "vladoboch won by resignation"]

1. d4 {[%clk 0:03:00.9]} 1... Nf6 {[%clk 0:02:57.7]} 2. c4 {[%clk 0:03:00.7]}
2... g6 {[%clk 0:02:58]} 3. Nc3 {[%clk 0:03:00]} 3... Bg7 {[%clk 0:02:58.3]} 4.
e4 {[%clk 0:02:59.6]} 4... d6 {[%clk 0:02:58.6]} 5. Be2 {[%clk 0:02:59.7]} 5...
O-O {[%clk 0:02:58.6]} 6. Nf3 {[%clk 0:03:00.2]} 6... e5 {[%clk 0:02:59.1]} 7.
O-O {[%clk 0:03:00]} 7... Nc6 {[%clk 0:02:59.4]} 8. d5 {[%clk 0:02:59.5]} 8...
Ne7 {[%clk 0:03:00.2]} 9. a4 {[%clk 0:02:59.6]} 9... Ne8 {[%clk 0:02:59.5]} 10.
Ne1 {[%clk 0:02:51.2]} 10... f5 {[%clk 0:02:59.3]} 11. f3 {[%clk 0:02:50.6]}
11... f4 {[%clk 0:02:58.8]} 12. a5 {[%clk 0:02:47]} 12... g5 {[%clk 0:02:49.9]}
13. Nd3 {[%clk 0:02:46.6]} 13... h5 {[%clk 0:02:49]} 14. Nf2 {[%clk 0:02:46]}
14... Ng6 {[%clk 0:02:45.8]} 15. b4 {[%clk 0:02:43.7]} 15... Rf7 {[%clk
0:02:26.6]} 16. Ba3 {[%clk 0:02:41.5]} 16... Bf8 {[%clk 0:02:25.2]} 17. c5
{[%clk 0:02:41.6]} 17... Rh7 {[%clk 0:02:23.3]} 18. h3 {[%clk 0:02:31]} 18...
Nf6 {[%clk 0:02:07.6]} 19. Rc1 {[%clk 0:02:20.9]} 19... Nh4 {[%clk 0:01:34.7]}
20. Na4 {[%clk 0:02:13.8]} 20... Rg7 {[%clk 0:01:32.3]} 21. b5 {[%clk
0:02:03.9]} 21... g4 {[%clk 0:01:28.4]} 22. fxg4 {[%clk 0:02:01]} 22... hxg4
{[%clk 0:01:28.2]} 23. Nxg4 {[%clk 0:01:51.7]} 23... Nxg4 {[%clk 0:01:27.2]} 24.
Bxg4 {[%clk 0:01:48.2]} 24... Bxg4 {[%clk 0:01:25.8]} 25. hxg4 {[%clk
0:01:47.7]} 25... Nxg2 {[%clk 0:00:52.6]} 26. Kxg2 {[%clk 0:01:27]} 26... Qh4
{[%clk 0:00:52.3]} 27. Rf3 {[%clk 0:01:15.6]} 27... Rxg4+ {[%clk 0:00:49.4]} 28.
Kf1 {[%clk 0:01:13.8]} 28... Qh2 {[%clk 0:00:33.2]} 29. Rf2 {[%clk 0:01:05.9]}
29... Qh1+ {[%clk 0:00:33.4]} 30. Ke2 {[%clk 0:01:03.8]} 30... Qxe4+ {[%clk
0:00:34.3]} 31. Kd2 {[%clk 0:00:59.4]} 31... Qe3+ {[%clk 0:00:34.5]} 32. Kc2
{[%clk 0:00:57.3]} 32... Qxf2+ {[%clk 0:00:35.4]} 33. Kb1 {[%clk 0:00:57.8]}
33... Rg2 {[%clk 0:00:33.5]} 34. Nc3 {[%clk 0:00:51.7]} 34... e4 {[%clk
0:00:28.6]} 35. Qh5 {[%clk 0:00:41.8]} 35... Bg7 {[%clk 0:00:25.4]} 36. Rh1
{[%clk 0:00:37.9]} 36... Qc2+ {[%clk 0:00:25.2]} 0-1

[Event "Late-Titled-Tuesday-Blitz-June-04-2024"]
[Site "Chess.com"]
[Date "2024.06.04"]
[Round "4"]
[White "N_Mullodzhanov"]
[Black "NikolaGry"]
[Result "0-1"]
[WhiteElo "2512"]
[BlackElo "2701"]
[TimeControl "180+1"]
[EndTime "14:37:46 PDT"]
[Termination "NikolaGry won by checkmate"]

1. e4 {[%clk 0:02:57.8]} 1... d5 {[%clk 0:02:58.8]} 2. Nc3 {[%clk 0:02:57.8]}
2... d4 {[%clk 0:02:58.2]} 3. Nce2 {[%clk 0:02:57.7]} 3... e5 {[%clk 0:02:56.6]}
4. d3 {[%clk 0:02:58.1]} 4... Bb4+ {[%clk 0:02:53.8]} 5. c3 {[%clk 0:02:55.9]}
5... dxc3 {[%clk 0:02:51.3]} 6. bxc3 {[%clk 0:02:56.8]} 6... Ba5 {[%clk
0:02:50.9]} 7. g3 {[%clk 0:02:51.1]} 7... Nc6 {[%clk 0:02:47.6]} 8. Bd2 {[%clk
0:02:45.4]} 8... Nge7 {[%clk 0:02:46.5]} 9. Bg2 {[%clk 0:02:45.2]} 9... Qxd3
{[%clk 0:02:41.8]} 10. f4 {[%clk 0:02:31.3]} 10... Bg4 {[%clk 0:02:31.5]} 11. h3
{[%clk 0:02:29.1]} 11... Bxe2 {[%clk 0:02:30.1]} 12. Nxe2 {[%clk 0:02:29.2]}
12... O-O-O {[%clk 0:02:27.6]} 13. f5 {[%clk 0:02:13.8]} 13... Rd6 {[%clk
0:02:18.5]} 14. Rc1 {[%clk 0:01:53.2]} 14... Rhd8 {[%clk 0:02:05.8]} 15. Rc2
{[%clk 0:01:52.8]} 15... Bb6 {[%clk 0:01:57.2]} 16. Qc1 {[%clk 0:01:42.6]} 16...
Na5 {[%clk 0:01:48.4]} 17. c4 {[%clk 0:01:40.1]} 17... Nxc4 {[%clk 0:01:46]} 18.
Rxc4 {[%clk 0:01:36.1]} 18... Qxd2+ {[%clk 0:01:44.9]} 19. Qxd2 {[%clk
0:01:35.3]} 19... Rxd2 {[%clk 0:01:44.1]} 20. Rc1 {[%clk 0:01:18.1]} 20... Rxa2
{[%clk 0:01:42.5]} 21. f6 {[%clk 0:01:15.2]} 21... gxf6 {[%clk 0:01:40.6]} 22.
Rf1 {[%clk 0:01:14.9]} 22... Ba5+ {[%clk 0:01:13.1]} 23. Kf2 {[%clk 0:01:11.3]}
23... Nc6 {[%clk 0:01:12.1]} 24. Ra1 {[%clk 0:00:59.1]} 24... Bb6+ {[%clk
0:01:06.2]} 25. Kf3 {[%clk 0:00:51.8]} 25... Rd3+ {[%clk 0:01:04.1]} 26. Kg4
{[%clk 0:00:51.6]} 26... Rxe2 {[%clk 0:01:02.8]} 27. Bf3 {[%clk 0:00:51.4]}
27... Ree3 {[%clk 0:01:02.1]} 28. Rad1 {[%clk 0:00:37.2]} 28... Rxf3 {[%clk
0:00:58.7]} 29. Rxf3 {[%clk 0:00:34.4]} 29... Rxd1 {[%clk 0:00:58.1]} 30. Rxf6
{[%clk 0:00:34.4]} 30... Rd7 {[%clk 0:00:56.9]} 31. Rh6 {[%clk 0:00:32.5]} 31...
a5 {[%clk 0:00:56.5]} 32. h4 {[%clk 0:00:32.5]} 32... a4 {[%clk 0:00:55.2]} 33.
h5 {[%clk 0:00:29.3]} 33... a3 {[%clk 0:00:54.2]} 34. Kg5 {[%clk 0:00:29.5]}
34... Be3+ {[%clk 0:00:52.6]} 35. Kf6 {[%clk 0:00:27.6]} 35... Bxh6 {[%clk
0:00:51.7]} 36. Kf5 {[%clk 0:00:26.7]} 36... a2 {[%clk 0:00:49.4]} 37. g4 {[%clk
0:00:27]} 37... a1=Q {[%clk 0:00:48.7]} 38. g5 {[%clk 0:00:27.4]} 38... Qf1+
{[%clk 0:00:47.8]} 39. Kg4 {[%clk 0:00:27.5]} 39... Qf4+ {[%clk 0:00:47.4]} 40.
Kh3 {[%clk 0:00:27.7]} 40... Rd3+ {[%clk 0:00:47.3]} 41. Kg2 {[%clk 0:00:28]}
41... Rd2+ {[%clk 0:00:46.5]} 42. Kh3 {[%clk 0:00:28.2]} 42... Rh2# {[%clk
0:00:45.1]} 0-1

[Event "Late-Titled-Tuesday-Blitz-June-04-2024"]
[Site "Chess.com"]
[Date "2024.06.04"]
[Round "4"]
[White "Rital44"]
[Black "Larax"]
[Result "1-0"]
[WhiteElo "2701"]
[BlackElo "2509"]
[TimeControl "180+1"]
[EndTime "14:37:50 PDT"]
[Termination "Rital44 won on time"]

1. f4 {[%clk 0:03:00.5]} 1... d5 {[%clk 0:02:52.3]} 2. Nf3 {[%clk 0:02:59.2]}
2... c5 {[%clk 0:02:48.5]} 3. d3 {[%clk 0:02:58.4]} 3... Nc6 {[%clk 0:02:46.3]}
4. g3 {[%clk 0:02:57.8]} 4... g6 {[%clk 0:02:38.9]} 5. Bg2 {[%clk 0:02:57]} 5...
Bg7 {[%clk 0:02:39.1]} 6. O-O {[%clk 0:02:56.4]} 6... Nf6 {[%clk 0:02:31.2]} 7.
Qe1 {[%clk 0:02:55.2]} 7... d4 {[%clk 0:02:26]} 8. a4 {[%clk 0:02:52.5]} 8...
O-O {[%clk 0:02:25]} 9. Na3 {[%clk 0:02:51.2]} 9... Nd5 {[%clk 0:02:24.9]} 10.
Nc4 {[%clk 0:02:50.4]} 10... b6 {[%clk 0:01:42.5]} 11. e4 {[%clk 0:02:45.9]}
11... dxe3 {[%clk 0:01:42]} 12. c3 {[%clk 0:02:44.9]} 12... Bb7 {[%clk
0:01:37.7]} 13. Bxe3 {[%clk 0:02:40.7]} 13... Qc7 {[%clk 0:01:34.6]} 14. Bf2
{[%clk 0:02:39.1]} 14... Rad8 {[%clk 0:01:33.5]} 15. Qe2 {[%clk 0:02:35.7]}
15... e6 {[%clk 0:01:03.6]} 16. Rfe1 {[%clk 0:02:22]} 16... Nde7 {[%clk
0:01:03.7]} 17. Ng5 {[%clk 0:01:58.3]} 17... Nf5 {[%clk 0:00:37.9]} 18. Ne4
{[%clk 0:01:53.3]} 18... Rd7 {[%clk 0:00:21.6]} 19. g4 {[%clk 0:01:52.7]} 19...
Nfe7 {[%clk 0:00:21.5]} 20. Bg3 {[%clk 0:01:52]} 20... Qd8 {[%clk 0:00:17.2]}
21. Rad1 {[%clk 0:01:47.7]} 21... Nd5 {[%clk 0:00:17]} 22. Qf2 {[%clk
0:01:41.8]} 22... Re8 {[%clk 0:00:16]} 23. Bh4 {[%clk 0:01:40.5]} 23... Qb8
{[%clk 0:00:16.1]} 24. Bg3 {[%clk 0:01:39]} 24... Qd8 {[%clk 0:00:16.3]} 25. Ne5
{[%clk 0:01:29.3]} 25... f6 {[%clk 0:00:13.8]} 26. Nxd7 {[%clk 0:01:28.4]} 26...
Qxd7 {[%clk 0:00:14.1]} 27. Re2 {[%clk 0:01:06.2]} 27... Na5 {[%clk 0:00:11.2]}
28. Rde1 {[%clk 0:01:00.3]} 28... Qxa4 {[%clk 0:00:08.8]} 29. Nd6 {[%clk
0:00:57.7]} 29... Rd8 {[%clk 0:00:07.1]} 30. Nxb7 {[%clk 0:00:56.7]} 30... Nxb7
{[%clk 0:00:08]} 31. Rxe6 {[%clk 0:00:57]} 31... Qd7 {[%clk 0:00:08.7]} 32. f5
{[%clk 0:00:54.9]} 32... Na5 {[%clk 0:00:04]} 33. g5 {[%clk 0:00:50.6]} 33...
fxg5 {[%clk 0:00:02.4]} 34. f6 {[%clk 0:00:47.3]} 34... Nxf6 {[%clk 0:00:01.3]}
35. Rxf6 {[%clk 0:00:47.6]} 35... Bxf6 {[%clk 0:00:01.1]} 36. Qxf6 {[%clk
0:00:48.2]} 1-0

[Event "Late-Titled-Tuesday-Blitz-June-04-2024"]
[Site "Chess.com"]
[Date "2024.06.04"]
[Round "4"]
[White "BashiqChess"]
[Black "Hirna2005"]
[Result "0-1"]
[WhiteElo "2465"]
[BlackElo "2332"]
[TimeControl "180+1"]
[EndTime "14:37:51 PDT"]
[Termination "Hirna2005 won by resignation"]

1. Nf3 {[%clk 0:03:00.9]} 1... g6 {[%clk 0:03:00.2]} 2. d4 {[%clk 0:02:58.6]}
2... Bg7 {[%clk 0:03:00.8]} 3. e3 {[%clk 0:02:56.4]} 3... d6 {[%clk 0:03:01.3]}
4. Be2 {[%clk 0:02:55.9]} 4... Nf6 {[%clk 0:03:01.4]} 5. O-O {[%clk 0:02:56.1]}
5... O-O {[%clk 0:03:01.3]} 6. b3 {[%clk 0:02:56.2]} 6... Bf5 {[%clk 0:03:00.9]}
7. Bb2 {[%clk 0:02:56.6]} 7... a6 {[%clk 0:02:53.5]} 8. c4 {[%clk 0:02:56.8]}
8... Qc8 {[%clk 0:02:47.4]} 9. Nc3 {[%clk 0:02:56.8]} 9... Ne4 {[%clk
0:02:46.8]} 10. Nd2 {[%clk 0:02:50.2]} 10... Nxd2 {[%clk 0:02:38.1]} 11. Qxd2
{[%clk 0:02:50.2]} 11... Nc6 {[%clk 0:02:38.4]} 12. Bf3 {[%clk 0:02:45.6]} 12...
Bg4 {[%clk 0:02:35.5]} 13. Qe2 {[%clk 0:02:29.9]} 13... Bxf3 {[%clk 0:02:35.2]}
14. Qxf3 {[%clk 0:02:30.8]} 14... e5 {[%clk 0:02:33.8]} 15. Nd5 {[%clk
0:02:26.2]} 15... Qd8 {[%clk 0:02:24.3]} 16. Rad1 {[%clk 0:02:23.2]} 16... exd4
{[%clk 0:02:16.4]} 17. Bxd4 {[%clk 0:02:21.8]} 17... Nxd4 {[%clk 0:02:15.8]} 18.
exd4 {[%clk 0:02:22.7]} 18... c6 {[%clk 0:02:13.3]} 19. Ne3 {[%clk 0:02:19.3]}
19... Qf6 {[%clk 0:02:11.1]} 20. Qxf6 {[%clk 0:02:17.1]} 20... Bxf6 {[%clk
0:02:11.1]} 21. d5 {[%clk 0:02:14.6]} 21... c5 {[%clk 0:02:07.8]} 22. Nc2 {[%clk
0:02:06]} 22... b5 {[%clk 0:02:06.1]} 23. Rb1 {[%clk 0:01:31.7]} 23... Rfe8
{[%clk 0:02:04.6]} 24. Rfe1 {[%clk 0:01:29.5]} 24... Kf8 {[%clk 0:02:01.8]} 25.
Kf1 {[%clk 0:01:17.6]} 25... Bc3 {[%clk 0:01:59.4]} 26. Red1 {[%clk 0:01:08.4]}
26... Re7 {[%clk 0:01:55.2]} 27. Ne3 {[%clk 0:01:08.7]} 27... f5 {[%clk
0:01:51.1]} 28. g3 {[%clk 0:01:07.7]} 28... Rae8 {[%clk 0:01:46]} 29. Rd3 {[%clk
0:01:02.7]} 29... Bd4 {[%clk 0:01:42.6]} 30. Re1 {[%clk 0:01:02.4]} 30... Bxe3
{[%clk 0:01:36.3]} 31. Rdxe3 {[%clk 0:01:01.7]} 31... Rxe3 {[%clk 0:01:35.7]}
32. Rxe3 {[%clk 0:01:02.6]} 32... Rxe3 {[%clk 0:01:35.6]} 33. fxe3 {[%clk
0:01:03.5]} 33... b4 {[%clk 0:01:29.5]} 34. e4 {[%clk 0:00:33.7]} 34... fxe4
{[%clk 0:01:03.8]} 35. Kf2 {[%clk 0:00:32.6]} 35... Kg7 {[%clk 0:01:01.8]} 36.
Ke2 {[%clk 0:00:32.9]} 36... Kf6 {[%clk 0:01:01.4]} 37. Ke3 {[%clk 0:00:18.7]}
37... Ke5 {[%clk 0:01:01.1]} 38. g4 {[%clk 0:00:18.2]} 38... g5 {[%clk
0:00:53.6]} 39. h3 {[%clk 0:00:15.5]} 39... h6 {[%clk 0:00:52.9]} 0-1

[Event "Late-Titled-Tuesday-Blitz-June-04-2024"]
[Site "Chess.com"]
[Date "2024.06.04"]
[Round "4"]
[White "Meri-Arabidze"]
[Black "maximnovik"]
[Result "1-0"]
[WhiteElo "2685"]
[BlackElo "2499"]
[TimeControl "180+1"]
[EndTime "14:37:52 PDT"]
[Termination "Meri-Arabidze won on time"]

1. Nf3 {[%clk 0:03:00.9]} 1... Nf6 {[%clk 0:02:59.8]} 2. c4 {[%clk 0:03:01.4]}
2... g6 {[%clk 0:02:59.6]} 3. g3 {[%clk 0:03:01.6]} 3... c6 {[%clk 0:02:59.4]}
4. Bg2 {[%clk 0:03:01.5]} 4... d5 {[%clk 0:03:00]} 5. O-O {[%clk 0:03:02]} 5...
Bg7 {[%clk 0:03:00.1]} 6. d4 {[%clk 0:03:00.6]} 6... O-O {[%clk 0:02:59.6]} 7.
a4 {[%clk 0:03:00.8]} 7... dxc4 {[%clk 0:02:55.9]} 8. Na3 {[%clk 0:02:59.2]}
8... Be6 {[%clk 0:02:52.2]} 9. Ng5 {[%clk 0:02:58.8]} 9... Bd5 {[%clk
0:02:50.4]} 10. e4 {[%clk 0:02:58.4]} 10... h6 {[%clk 0:02:50.4]} 11. exd5
{[%clk 0:02:58.6]} 11... hxg5 {[%clk 0:02:50.6]} 12. dxc6 {[%clk 0:02:58.9]}
12... Nxc6 {[%clk 0:02:50.6]} 13. d5 {[%clk 0:02:56.8]} 13... Nb4 {[%clk
0:02:48.7]} 14. Bxg5 {[%clk 0:02:52.2]} 14... Rc8 {[%clk 0:02:25.2]} 15. Qe2
{[%clk 0:02:17.6]} 15... Nfxd5 {[%clk 0:01:54.2]} 16. Nxc4 {[%clk 0:02:15]}
16... Qc7 {[%clk 0:01:44.6]} 17. Ne3 {[%clk 0:01:59.1]} 17... e6 {[%clk
0:01:17.1]} 18. h4 {[%clk 0:01:47.1]} 18... Nc2 {[%clk 0:01:06.2]} 19. Nxd5
{[%clk 0:01:36]} 19... exd5 {[%clk 0:01:04.1]} 20. Rac1 {[%clk 0:01:36.6]} 20...
Nd4 {[%clk 0:00:51]} 21. Qg4 {[%clk 0:01:31]} 21... Nc2 {[%clk 0:00:21.4]} 22.
Bxd5 {[%clk 0:01:23.8]} 22... Qe5 {[%clk 0:00:20.7]} 23. Bxb7 {[%clk 0:01:18.8]}
23... Rc5 {[%clk 0:00:15.8]} 24. b4 {[%clk 0:01:04.8]} 24... Rc3 {[%clk
0:00:11.5]} 25. b5 {[%clk 0:01:00.7]} 25... Nd4 {[%clk 0:00:10]} 26. Rxc3 {[%clk
0:00:57.3]} 26... Ne2+ {[%clk 0:00:10.2]} 27. Kg2 {[%clk 0:00:57.3]} 27... Nxc3
{[%clk 0:00:10.3]} 28. Bc6 {[%clk 0:00:51.7]} 28... Qc5 {[%clk 0:00:07.5]} 29.
Be3 {[%clk 0:00:47.6]} 29... Qd6 {[%clk 0:00:06.9]} 30. Bxa7 {[%clk 0:00:43.5]}
30... f5 {[%clk 0:00:04.6]} 31. Qc4+ {[%clk 0:00:42.5]} 31... Kh7 {[%clk
0:00:04.4]} 32. Bc5 {[%clk 0:00:41.3]} 1-0